bitfinex/quotes_SOLUSD_20250330
["timestamp","ask_amount","ask_price","bid_price","bid_amount"]
[1743368517341,0.063,125.93,125.91,20.28432314]
[1743368517545,0.063,125.93,125.92,25.79181043]
[1743368518870,0.063,125.93,125.92,33.73331043]
[1743368521445,9.53439367,125.93,125.92,7.0]
[1743368521863,9.53439367,125.93,125.92,14.9415]
[1743368522643,0.063,125.93,125.92,14.9415]
[1743368525476,9.53439367,125.93,125.92,7.0]
[1743368525656,0.063,125.93,125.91,88.6267]
[1743368531160,0.063,125.93,125.92,18.79181043]
[1743368532052,0.063,125.93,125.92,26.73331043]
[1743368533579,0.063,125.93,125.92,246.14449514]
[1743368533780,0.03,125.96,125.93,0.28432314]
[1743368533984,0.03,125.96,125.95,18.79181043]
[1743368534273,0.03,125.96,125.95,26.73141043]
[1743368539657,0.03,125.96,125.95,27.15789514]
[1743368541583,0.03,125.96,125.95,26.73141043]
[1743368543782,0.03,125.96,125.95,7.9396]
[1743368543988,0.03,125.96,125.94,14.8602]
[1743368545488,9.50139367,125.96,125.94,6.92]
[1743368545991,9.50139367,125.96,125.93,99.47651043]
[1743368546587,9.47139367,125.95,125.93,99.47651043]
[1743368546880,9.47139367,125.95,125.93,107.41731043]
[1743368547294,9.47139367,125.95,125.93,80.6847]
[1743368547471,9.47139367,125.94,125.93,80.6847]
[1743368547804,9.47139367,125.94,125.9,290.8047]
[1743368548008,9.47139367,125.91,125.9,290.8047]
[1743368548295,9.47139367,125.91,125.88,0.063]
[1743368548587,9.47139367,125.89,125.88,0.063]
[1743368551585,14.3694,125.92,125.88,0.063]
[1743368551888,9.47139367,125.89,125.88,0.063]
[1743368557296,9.47139367,125.9,125.88,0.063]
[1743368557602,9.47139367,125.9,125.88,8.007]
[1743368558599,9.47139367,125.91,125.88,8.007]
[1743368559374,11.11689367,125.93,125.89,18.79181043]
[1743368559580,9.47139367,125.93,125.89,18.79181043]
[1743368561503,9.47139367,125.93,125.9,7.9428]
[1743368562502,9.50139367,125.93,125.9,7.9428]
[1743368563004,9.50139367,125.93,125.9,88.6275]
[1743368567487,9.50139367,125.93,125.9,95.5275]
[1743368568601,0.03,125.93,125.91,18.79181043]
[1743368570396,0.03,125.93,125.92,0.42648471]
[1743368570596,0.03,125.93,125.92,27.15979514]
[1743368574709,0.03,125.93,125.92,107.84449514]
[1743368578613,0.03,125.93,125.92,88.6262]
[1743368578819,9.50139367,125.93,125.92,80.6847]
[1743368582317,0.03,125.93,125.92,80.6847]
[1743368583319,0.03,125.93,125.92,88.6262]
[1743368583619,0.03,125.93,125.92,107.41801043]
[1743368585007,0.03,125.93,125.92,245.860172]
[1743368585213,0.03,125.93,125.92,246.14449514]
[1743368587920,0.0001,125.93,125.92,246.14449514]
[1743368588122,0.0001,125.98,125.95,8.68784628]
[1743368588312,0.03,126.06,126.0,19.21829514]
[1743368588635,0.03,126.06,126.0,455.22289514]
[1743368588815,0.03,126.06,126.02,0.14216157]
[1743368588997,0.03,126.06,126.03,18.79181043]
[1743368589200,0.03,126.06,126.05,18.79181043]
[1743368589401,0.03,126.06,126.05,99.47641043]
[1743368590107,0.03,126.06,126.05,107.40971043]
[1743368591118,0.03,126.06,126.05,107.551872]
[1743368592113,0.03,126.06,126.05,99.47641043]
[1743368592423,0.03,126.06,126.05,107.40971043]
[1743368593210,0.03,126.06,126.05,99.47641043]
[1743368594101,0.03,126.06,126.05,107.40971043]
[1743368595127,0.03,126.06,126.05,107.551872]
[1743368595327,0.03,126.06,126.05,165.45159514]
[1743368596327,0.0001,126.06,126.05,165.45159514]
[1743368598007,7.6406,126.17,126.09,18.933972]
[1743368598212,14.75476539,126.15,126.12,7.9289]
[1743368598419,14.75476539,126.16,126.12,7.9289]
[1743368598723,7.6406,126.17,126.12,88.9289]
[1743368598724,22.39536539,126.17,126.12,88.9289]
[1743368598947,14.75476539,126.14,126.12,81.0]
[1743368599115,14.75476539,126.13,126.12,81.0]
[1743368600227,14.75476539,126.13,126.1,216.92]
[1743368600409,14.75476539,126.11,126.1,209.94]
[1743368600926,14.75476539,126.12,126.1,209.94]
[1743368602439,14.75476539,126.11,126.1,209.94]
[1743368603330,22.39536539,126.11,126.1,209.94]
[1743368603636,22.39536539,126.11,126.08,81.0]
[1743368603943,14.75476539,126.09,126.08,81.0]
[1743368605314,14.75476539,126.09,126.06,145.34]
[1743368605315,14.75476539,126.09,126.06,7.04]
[1743368605522,22.68566539,126.09,126.06,7.04]
[1743368607717,14.75476539,126.07,126.04,81.0]
[1743368607923,14.75476539,126.05,126.03,209.86]
[1743368608227,14.75476539,126.06,126.03,209.86]
[1743368608966,14.75476539,126.07,126.03,209.86]
[1743368609751,22.68686539,126.07,126.03,209.86]
[1743368610960,14.75476539,126.07,126.03,209.86]
[1743368611342,14.75476539,126.07,126.03,209.923]
[1743368611543,14.78476539,126.07,126.03,209.923]
[1743368613464,14.78476539,126.07,126.03,217.8575]
[1743368613977,0.03,126.07,126.05,7.9333]
[1743368616762,14.78476539,126.07,126.04,7.9337]
[1743368616962,14.78476539,126.07,126.03,7.9973]
[1743368619566,0.03,126.07,126.04,18.79181043]
[1743368620567,0.03,126.07,126.05,7.9333]
[1743368626773,14.78476539,126.07,126.05,7.9333]
[1743368627079,14.75476539,126.06,126.05,7.9333]
[1743368628286,14.75476539,126.06,126.04,7.9339]
[1743368629688,9.47846386,126.07,126.04,7.9339]
[1743368635365,9.44846386,126.06,126.04,0.063]
[1743368635560,9.44846386,126.05,126.04,0.063]
[1743368637576,17.38176386,126.05,126.04,0.063]
[1743368640371,9.44846386,126.05,126.04,0.063]
[1743368641201,17.38176386,126.05,126.04,0.063]
[1743368643270,9.44846386,126.05,126.04,0.063]
[1743368644304,17.38176386,126.05,126.04,0.063]
[1743368645894,17.38176386,126.05,126.03,0.063]
[1743368646196,9.44846386,126.04,126.03,0.063]
[1743368647994,17.38236386,126.04,126.03,0.063]
[1743368648396,9.44846386,126.04,126.03,0.063]
[1743368648574,0.03,126.07,126.03,0.063]
[1743368648773,9.44846386,126.04,126.03,20.063]
[1743368649590,9.44846386,126.05,126.03,20.063]
[1743368650191,9.44846386,126.04,126.03,0.063]
[1743368652389,17.38236386,126.04,126.03,0.063]
[1743368659600,9.44846386,126.04,126.03,0.063]
[1743368663201,17.38236386,126.04,126.03,0.063]
[1743368670496,17.41236386,126.04,126.03,0.063]
[1743368672218,17.41236386,126.04,125.96,211.568]
[1743368672219,20.0,126.01,125.96,211.568]
[1743368672397,9.44846386,125.97,125.96,209.98]
[1743368677816,9.44846386,125.98,125.96,209.98]
[1743368679223,9.44846386,125.98,125.96,217.9189]
[1743368679425,9.44846386,125.98,125.96,7.9389]
[1743368680002,9.44846386,126.0,125.96,7.9389]
[1743368682027,9.44846386,126.0,125.94,27.7902]
[1743368682219,9.44846386,125.99,125.94,27.7902]
[1743368682822,9.44846386,125.99,125.96,0.063]
[1743368686230,9.44846386,125.98,125.96,0.063]
[1743368689632,9.44846386,125.99,125.96,0.063]
[1743368696537,9.44846386,125.98,125.96,0.063]
[1743368697740,9.44846386,125.97,125.96,0.063]
[1743368709064,17.38676386,125.97,125.96,0.063]
[1743368709736,9.44846386,125.97,125.96,0.063]
[1743368710457,17.38676386,125.97,125.96,0.063]
[1743368712256,42.24903513,125.97,125.96,0.063]
[1743368714249,42.24903513,125.97,125.92,0.063]
[1743368714250,9.44846386,125.93,125.92,0.063]
[1743368717057,17.38936386,125.93,125.92,0.063]
[1743368717259,9.44846386,125.93,125.92,0.063]
[1743368717649,17.38936386,125.93,125.92,0.063]
[1743368721565,9.44846386,125.93,125.92,0.063]
[1743368722267,9.44846386,125.92,125.91,0.063]
[1743368723160,9.44846386,125.94,125.91,0.063]
[1743368723359,9.44846386,125.93,125.91,0.063]
[1743368723561,0.03,125.96,125.91,0.063]
[1743368723758,9.44846386,125.95,125.91,1.5792]
[1743368724660,0.03,125.96,125.91,1.5792]
[1743368725063,9.44846386,125.95,125.91,1.5792]
[1743368725668,9.44846386,125.95,125.92,7.9415]
[1743368726552,9.44846386,125.94,125.92,7.9415]
[1743368727570,9.44846386,125.93,125.91,8.0049]
[1743368727866,9.44846386,125.92,125.91,0.063]
[1743368744174,9.47846386,125.92,125.91,0.063]
[1743368744759,9.22556685,125.92,125.91,0.063]
[1743368747460,0.03,125.92,125.91,0.063]
[1743368747887,9.47846386,125.92,125.91,0.063]
[1743368761893,0.03,125.92,125.91,0.063]
[1743368762070,0.03,125.92,125.91,26.841272]
[1743368764310,0.03,125.92,125.91,34.783372]
[1743368764476,0.03,125.96,125.91,94.349672]
[1743368764802,0.03,125.96,125.92,19.07613357]
[1743368765099,0.03,125.96,125.92,100.07613357]
[1743368766092,0.03,125.96,125.93,27.7931]
[1743368766395,0.03,125.96,125.94,25.57181043]
[1743368768291,0.03,125.96,125.95,26.73141043]
[1743368772595,0.03,125.96,125.95,236.81141043]
[1743368773100,0.03,125.96,125.95,317.953572]
[1743368774692,0.03,125.96,125.95,319.618472]
[1743368775307,0.03,125.96,125.95,299.0196]
[1743368776190,0.03,125.96,125.95,317.81141043]
[1743368776987,0.03,125.96,125.95,317.953572]
[1743368777683,0.0001,125.96,125.95,319.90279514]
[1743368779306,0.0001,125.96,125.95,319.47631043]
[1743368780403,0.0001,125.96,125.95,319.53931043]
[1743368780893,0.0001,125.96,125.95,317.73224886]
[1743368782100,0.0001,125.96,125.95,107.65224886]
[1743368782407,0.0001,125.96,125.95,107.79441043]
[1743368787108,0.0001,125.96,125.95,317.83441043]
[1743368787817,0.0001,125.96,125.95,299.0426]
[1743368788902,0.0001,125.96,125.95,317.83441043]
[1743368791704,0.0001,125.96,125.95,107.79441043]
[1743368798814,0.0001,125.96,125.95,107.936572]
[1743368799000,0.0001,125.96,125.95,254.47782865]
[1743368799193,0.0001,125.96,125.95,254.76215179]
[1743368803516,0.0001,125.96,125.95,116.46215179]
[1743368804919,1.6666,126.03,125.99,20.14216157]
[1743368805215,1.6666,126.03,125.99,107.92216157]
[1743368805216,0.03,126.03,125.99,107.92216157]
[1743368805418,0.03,126.03,126.0,7.9365]
[1743368809429,0.03,126.03,126.0,27.7777]
[1743368809803,0.03,126.03,126.02,20.0]
[1743368810709,0.03,126.03,126.02,27.9352]
[1743368820031,0.03,126.03,126.0,27.7777]
[1743368820215,0.03,126.03,126.02,20.0]
[1743368820613,0.03,126.03,126.0,7.9365]
[1743368820817,9.47846386,126.03,126.0,7.9365]
[1743368821115,9.44846386,126.02,125.99,88.9369]
[1743368821334,9.44846386,126.01,125.99,81.0]
[1743368821708,9.44846386,126.02,125.99,88.937]
[1743368823040,9.47846386,126.03,125.99,88.937]
[1743368824837,9.47846386,126.03,125.99,83.937]
[1743368825819,0.03,126.03,125.99,103.7798]
[1743368827237,0.03,126.03,125.99,110.5598]
[1743368829719,0.03,126.03,126.02,27.9352]
[1743368830337,0.03,126.03,126.02,22.9352]
[1743368835043,0.03,126.03,126.02,7.9352]
[1743368835435,0.03,126.03,126.0,26.72831043]
[1743368839851,0.03,126.03,126.0,26.79131043]
[1743368847756,0.03,126.03,126.0,7.9995]
[1743368848054,9.44846386,126.01,126.0,0.063]
[1743368854201,21.84809942,126.03,126.0,0.063]
[1743368854537,12.39963556,126.03,126.0,0.063]
[1743368854748,12.39963556,126.03,126.0,18.85481043]
[1743368855150,12.39963556,126.03,126.01,6.78]
[1743368855458,0.03,126.03,126.01,6.78]
[1743368856261,0.03,126.03,126.01,14.7153]
[1743368870948,9.44846386,126.02,126.0,0.063]
[1743368871684,9.47846386,126.03,126.0,7.9992]
[1743368877603,0.03,126.03,126.0,7.9992]
[1743368877780,9.47846386,126.03,126.0,7.9992]
[1743368879801,9.44846386,126.02,126.0,0.063]
[1743368880482,9.44846386,126.01,126.0,0.063]
[1743368881893,9.44846386,126.02,126.0,0.063]
[1743368882077,9.47846386,126.03,126.0,0.063]
[1743368883593,0.03,126.03,126.0,0.063]
[1743368889696,9.47846386,126.03,126.0,0.063]
[1743368889892,9.44846386,126.01,126.0,0.063]
[1743368890096,15.60616386,126.01,126.0,0.063]
[1743368890304,10.96436386,126.02,126.0,0.063]
[1743368895200,9.44846386,126.01,126.0,0.063]
[1743368900990,17.38426386,126.01,126.0,0.063]
[1743368901804,23.51366386,126.01,126.0,0.063]
[1743368907919,79.95716816,126.01,126.0,0.063]
[1743368908118,79.95716816,126.01,125.96,210.043]
[1743368908320,9.44846386,125.97,125.96,210.043]
[1743368908615,9.44846386,125.97,125.96,0.063]
[1743368908616,10.97696386,125.97,125.96,0.063]
[1743368909599,29.62661272,125.97,125.96,0.063]
[1743368909903,44.15821272,125.97,125.96,0.063]
[1743368911202,25.50856386,125.97,125.96,0.063]
[1743368911419,9.44846386,125.97,125.96,0.063]
[1743368919737,9.44846386,125.98,125.96,0.063]
[1743368922030,9.44846386,125.97,125.96,0.063]
[1743368923030,18.76838785,126.02,125.96,0.063]
[1743368923245,9.56720285,126.02,125.96,0.063]
[1743368923535,9.56720285,126.02,125.96,6.843]
[1743368923728,9.44846386,126.01,125.96,6.843]
[1743368924118,9.56720285,126.02,125.97,7.9383]
[1743368924323,0.11873899,126.02,125.97,7.9383]
[1743368924537,0.11873899,126.02,125.97,27.7842]
[1743368925246,9.56720285,126.02,125.97,27.7842]
[1743368927130,9.44846386,126.0,125.97,7.9383]
[1743368937645,8.05413899,126.02,125.96,0.063]
[1743368937646,9.44846386,125.98,125.96,0.063]
[1743368937836,9.44846386,125.98,125.97,0.063]
[1743368953646,9.44846386,125.99,125.97,0.063]
[1743368977964,0.03,126.0,125.97,0.063]
[1743368978175,0.03,126.0,125.97,18.85481043]
[1743368979468,0.03,126.0,125.98,7.9377]
[1743368987003,0.03,126.0,125.98,83.9377]
[1743368989086,0.03,126.0,125.98,293.9377]
[1743368996697,0.03,126.0,125.98,294.0007]
[1743368998506,0.03,126.0,125.98,84.0007]
[1743369000805,9.47846386,126.0,125.98,0.063]
[1743369000996,9.47846386,126.0,125.98,8.0006]
[1743369001396,0.03,126.0,125.98,0.063]
[1743369002815,9.47846386,126.0,125.98,0.063]
[1743369003690,0.03,126.0,125.98,0.063]
[1743369034637,0.03,126.0,125.99,20.0]
[1743369036137,0.03,126.0,125.98,0.063]
[1743369039838,0.03,126.0,125.99,0.28432314]
[1743369040022,0.11873899,126.02,126.01,38.933972]
[1743369040222,0.11873899,126.02,126.01,45.693972]
[1743369041022,0.11873899,126.02,126.01,53.629772]
[1743369042139,0.11873899,126.02,126.01,268.21409514]
[1743369045343,0.11873899,126.02,126.01,267.78761043]
[1743369046829,0.11873899,126.02,126.01,129.48761043]
[1743369049644,0.11873899,126.02,126.01,110.6958]
[1743369050253,0.11873899,126.02,126.01,103.9358]
[1743369051846,9.56720285,126.02,125.99,209.92]
[1743369052042,0.11873899,126.02,125.99,209.92]
[1743369052248,0.11873899,126.02,125.99,217.857]
[1743369057853,0.11873899,126.02,125.99,217.92]
[1743369063959,9.56720285,126.02,125.99,209.983]
[1743369064143,9.44846386,126.01,125.99,209.983]
[1743369064659,9.56720285,126.02,125.99,209.983]
[1743369065757,9.56720285,126.02,125.99,0.063]
[1743369065960,0.11873899,126.02,126.0,6.76]
[1743369066940,0.11873899,126.02,126.01,7.9358]
[1743369068863,0.11873899,126.02,126.01,26.72761043]
[1743369073254,0.11873899,126.02,126.01,102.72761043]
[1743369075560,0.11873899,126.02,126.01,83.9358]
[1743369094087,0.11873899,126.02,126.01,102.869772]
[1743369101293,3.899e-05,126.02,126.01,104.76369514]
[1743369101591,3.899e-05,126.02,126.01,243.06369514]
[1743369102790,3.899e-05,126.03,126.02,0.14216157]
[1743369102972,3.899e-05,126.04,126.02,233.51829514]
[1743369103173,3.899e-05,126.04,126.03,33.77073357]
[1743369104274,0.03,126.09,126.06,20.14216157]
[1743369104476,0.03,126.09,126.06,114.79181043]
[1743369104979,0.03,126.09,126.07,0.14216157]
[1743369105277,0.03,126.09,126.08,14.6914]
[1743369107187,0.03,126.09,126.08,14.83356157]
[1743369108618,0.03,126.09,126.08,90.83356157]
[1743369109597,0.03,126.09,126.08,109.625372]
[1743369118601,0.03,126.09,126.08,109.90969514]
[1743369119986,0.03,126.09,126.08,109.625372]
[1743369122302,0.03,126.09,126.08,90.83356157]
[1743369122903,0.03,126.09,126.08,90.6914]
[1743369123488,0.03,126.09,126.08,83.9314]
[1743369137024,9.47846386,126.09,126.08,76.0]
[1743369138405,9.47846386,126.09,126.06,153.0553]
[1743369139532,9.47846386,126.09,126.06,146.2953]
[1743369140322,9.44846386,126.08,126.06,0.063]
[1743369140517,9.44846386,126.07,126.06,0.063]
[1743369144425,7.961,126.09,126.06,0.063]
[1743369144426,0.03,126.09,126.06,0.063]
[1743369146424,9.47846386,126.09,126.06,0.063]
[1743369146623,9.44846386,126.08,126.06,0.063]
[1743369146937,9.44846386,126.07,126.06,0.063]
[1743369147119,9.44846386,126.08,126.06,0.063]
[1743369151123,9.44846386,126.07,126.06,0.063]
[1743369156244,9.44846386,126.08,126.06,0.063]
[1743369156550,9.47846386,126.09,126.06,0.063]
[1743369156720,0.03,126.09,126.06,7.9957]
[1743369159149,9.47846386,126.09,126.06,7.9957]
[1743369160951,9.44846386,126.07,126.06,7.9957]
[1743369162727,9.44846386,126.07,126.06,0.063]
[1743369164325,9.47846386,126.08,126.06,0.063]
[1743369164639,9.44846386,126.07,126.06,0.063]
[1743369174828,9.47846386,126.08,126.06,0.063]
[1743369175034,0.03,126.08,126.06,6.823]
[1743369176649,0.03,126.08,126.07,0.14216157]
[1743369177050,0.03,126.08,126.07,8.07426157]
[1743369181952,0.03,126.08,126.07,84.07426157]
[1743369185363,0.03,126.08,126.07,83.9321]
[1743369185666,9.47846386,126.08,126.07,83.9321]
[1743369185850,9.47846386,126.08,126.06,217.8554]
[1743369188562,9.47846386,126.08,126.06,7.9954]
[1743369190258,9.44846386,126.07,126.06,7.9954]
[1743369190465,9.47846386,126.08,126.06,7.9954]
[1743369191065,9.47846386,126.08,126.06,0.063]
[1743369191664,0.03,126.08,126.06,0.20516157]
[1743369192867,0.03,126.08,126.06,76.20516157]
[1743369193166,0.03,126.08,126.07,7.9321]
[1743369193371,0.03,126.08,126.07,8.07426157]
[1743369196361,0.03,126.08,126.07,84.07426157]
[1743369197850,0.03,126.08,126.07,83.9321]
[1743369198257,0.03,126.08,126.07,84.07426157]
[1743369202656,0.03,126.08,126.07,103.15039514]
[1743369203056,0.03,126.08,126.07,312.99039514]
[1743369204175,0.0001,126.08,126.07,451.29039514]
[1743369204472,0.0001,126.09,126.08,19.21829514]
[1743369204663,0.0001,126.09,126.08,33.90969514]
[1743369205972,9.47846386,126.15,126.12,0.14216157]
[1743369206173,9.47846386,126.15,126.12,76.14206157]
[1743369206377,9.47846386,126.15,126.12,82.90206157]
[1743369206567,9.47846386,126.15,126.12,82.7599]
[1743369206769,9.44846386,126.14,126.12,82.7599]
[1743369207166,9.44846386,126.14,126.12,90.6887]
[1743369208658,9.44846386,126.14,126.12,82.7599]
[1743369208857,9.44846386,126.13,126.12,75.9999]
[1743369209057,9.44846386,126.13,126.12,83.9288]
[1743369209870,0.03,126.14,126.12,75.9999]
[1743369210057,9.44846386,126.13,126.12,75.9999]
[1743369219384,0.03,126.14,126.12,95.9999]
[1743369219568,0.03,126.14,126.13,25.693972]
[1743369221482,0.03,126.14,126.13,33.622272]
[1743369222783,0.03,126.14,126.13,247.922172]
[1743369225186,0.03,126.15,126.13,247.922172]
[1743369225377,0.03,126.2,126.14,0.28432314]
[1743369225701,9.47846386,126.2,126.16,0.14216157]
[1743369226186,0.03,126.2,126.16,0.14216157]
[1743369226376,0.03,126.2,126.17,6.76]
[1743369226682,0.03,126.2,126.17,82.7599]
[1743369226883,0.03,126.2,126.18,209.76]
[1743369227388,0.03,126.2,126.19,7.9245]
[1743369229071,0.03,126.2,126.18,217.6849]
[1743369231676,0.03,126.2,126.18,293.6848]
[1743369232783,0.03,126.2,126.19,0.14216157]
[1743369234702,0.03,126.2,126.19,8.06666157]
[1743369236685,0.03,126.2,126.19,26.858472]
[1743369237401,0.03,126.2,126.19,241.158372]
[1743369242203,0.03,126.2,126.19,249.53239514]
[1743369246286,0.03,126.21,126.2,76.39638471]
[1743369246487,0.03,126.21,126.2,214.69638471]
[1743369247309,0.03,126.21,126.2,222.62028471]
[1743369251413,0.03,126.21,126.2,241.41209514]
[1743369252115,9.47846386,126.26,126.23,0.14216157]
[1743369252414,9.47846386,126.26,126.23,82.82206157]
[1743369253509,9.47846386,126.26,126.24,7.9214]
[1743369254112,0.03,126.26,126.24,7.9214]
[1743369254918,0.03,126.26,126.24,83.8613]
[1743369256714,0.03,126.26,126.25,0.14216157]
[1743369257230,0.03,126.26,126.24,83.8613]
[1743369262542,0.03,126.26,126.25,26.854672]
[1743369262752,0.03,126.26,126.25,27.13899514]
[1743369263331,0.03,126.27,126.26,0.14216157]
[1743369263506,2.8174979,126.29,126.28,18.79181043]
[1743369263706,2.8174979,126.29,126.28,25.53181043]
[1743369264713,2.8174979,126.29,126.28,33.45071043]
[1743369266212,2.8174979,126.29,126.28,14.80106157]
[1743369266525,2.8174979,126.29,126.28,33.45071043]
[1743369266730,2.8174979,126.29,126.28,247.66061043]
[1743369269834,2.8174979,126.29,126.28,457.20061043]
[1743369270024,2.8474979,126.29,126.28,457.20061043]
[1743369273318,2.8474979,126.29,126.28,457.62709514]
[1743369274637,0.03,126.34,126.28,457.62709514]
[1743369274638,0.03,126.34,126.32,0.28432314]
[1743369274832,0.03,126.34,126.32,80.08672524]
[1743369275740,0.03,126.34,126.33,7.9157]
[1743369276239,0.03,126.34,126.33,81.26242524]
[1743369276630,0.03,126.34,126.33,99.9120741]
[1743369278946,0.03,126.34,126.33,238.2120741]
[1743369279321,0.03,126.34,126.33,244.9520741]
[1743369283820,0.03,126.34,126.33,245.23639724]
[1743369284237,0.03,126.34,126.33,454.67639724]
[1743369285647,1.5594,126.41,126.37,18.933972]
[1743369285947,1.5594,126.41,126.39,7.912]
[1743369288551,1.5594,126.41,126.38,14.6523]
[1743369289349,9.44846386,126.4,126.38,6.74]
[1743369290130,1.5594,126.41,126.38,6.74]
[1743369290131,11.00786386,126.41,126.38,6.74]
[1743369290449,11.00786386,126.41,126.38,79.8024021]
[1743369291051,9.44846386,126.4,126.38,79.8024021]
[1743369291648,9.44846386,126.39,126.38,79.8024021]
[1743369294333,9.44846386,126.39,126.36,146.2137]
[1743369294334,17.36046386,126.39,126.35,14.6543]
[1743369294538,9.44846386,126.38,126.35,14.6543]
[1743369294851,17.36046386,126.39,126.35,87.7167021]
[1743369295028,9.44846386,126.39,126.35,87.7167021]
[1743369295234,9.47846386,126.39,126.35,87.7167021]
[1743369296851,9.47846386,126.39,126.35,79.8024021]
[1743369297227,9.47846386,126.39,126.35,87.7166021]
[1743369298555,17.39046386,126.39,126.35,79.8024021]
[1743369298732,9.44846386,126.38,126.35,79.8024021]
[1743369299554,9.47846386,126.39,126.35,79.8024021]
[1743369299748,9.44846386,126.38,126.35,79.8024021]
[1743369300650,0.03,126.39,126.36,18.933972]
[1743369301440,9.47846386,126.39,126.35,211.3624021]
[1743369301656,9.44846386,126.38,126.35,79.8024021]
[1743369302342,9.44846386,126.37,126.35,73.0624021]
[1743369303758,7.9138,126.36,126.35,73.0624021]
[1743369303964,17.36226386,126.36,126.35,73.0624021]
[1743369309262,55.1561193,126.36,126.34,0.063]
[1743369309477,9.44846386,126.35,126.34,0.063]
[1743369310764,17.36296386,126.35,126.34,0.063]
[1743369311060,1.549,126.37,126.34,0.063]
[1743369311253,9.44846386,126.36,126.34,0.063]
[1743369311455,10.99746386,126.37,126.34,0.063]
[1743369311959,9.44846386,126.36,126.34,0.063]
[1743369312261,9.44846386,126.35,126.34,0.063]
[1743369312847,17.36296386,126.35,126.34,0.063]
[1743369316983,63.39291272,126.35,126.28,138.3]
[1743369317173,9.44846386,126.3,126.27,73.1254021]
[1743369317376,53.94444886,126.35,126.27,73.1254021]
[1743369317377,9.44846386,126.28,126.27,73.1254021]
[1743369317875,9.44846386,126.28,126.27,0.063]
[1743369318859,17.36736386,126.28,126.27,0.063]
[1743369324169,36.01701272,126.28,126.27,0.063]
[1743369324557,42.75701272,126.28,126.27,0.063]
[1743369325276,18.64964886,126.27,126.21,73.1254021]
[1743369325481,9.44846386,126.23,126.21,73.1254021]
[1743369326876,9.44846386,126.22,126.21,0.063]
[1743369336586,9.44846386,126.23,126.21,0.063]
[1743369337785,9.44846386,126.26,126.21,0.063]
[1743369338892,8.1495,126.28,126.21,0.063]
[1743369338893,9.44846386,126.25,126.21,0.063]
[1743369339988,27.9254,126.18,126.15,0.063]
[1743369340194,9.44846386,126.16,126.15,0.063]
[1743369343694,14.74202671,126.16,126.15,0.063]
[1743369344693,14.74202671,126.17,126.15,0.063]
[1743369345678,14.74202671,126.16,126.15,0.063]
[1743369347695,14.74202671,126.16,126.11,73.20456367]
[1743369347993,14.74202671,126.15,126.11,73.20456367]
[1743369349674,14.74202671,126.15,126.11,81.13396367]
[1743369349876,14.74202671,126.16,126.11,81.13396367]
[1743369352711,14.74202671,126.15,126.11,81.13396367]
[1743369354397,14.74202671,126.15,126.11,290.85396367]
[1743369354601,14.74202671,126.16,126.11,290.85396367]
[1743369356491,14.74202671,126.16,126.11,290.91696367]
[1743369356696,0.03,126.16,126.13,0.14216157]
[1743369356891,0.03,126.16,126.13,211.50456367]
[1743369357202,0.03,126.16,126.15,20.0]
[1743369357397,0.03,126.16,126.15,93.0624021]
[1743369358798,0.03,126.16,126.15,80.9894021]
[1743369359204,0.03,126.16,126.15,73.0624021]
[1743369359506,14.77202671,126.16,126.15,73.0624021]
[1743369359907,0.03,126.16,126.15,73.0624021]
[1743369361008,14.77202671,126.16,126.15,73.0624021]
[1743369361912,0.03,126.16,126.15,73.0624021]
[1743369366717,9.46343073,126.16,126.13,138.3]
[1743369367117,0.03,126.16,126.13,146.2279]
[1743369369120,0.03,126.16,126.13,166.1117]
[1743369370420,0.03,126.16,126.15,7.927]
[1743369372325,0.03,126.16,126.15,80.9894021]